fUSD/lending_fUSD_20260108
["ID","MTS","AMOUNT","RATE_DAILY","PERIOD"]
[400822102,1767838248212,-500.0,0.00017997,2]
[400822104,1767838248221,-500.0,0.00017997,2]
[400822106,1767838248230,-500.0,0.00017997,2]
[400822108,1767838248239,-151.0,0.00017997,2]
[400822110,1767838248249,-500.0,0.00017998,2]
[400822112,1767838248258,-276.82311961,0.00017999,2]
[400822114,1767838248267,-500.0,0.00017999,2]
[400822115,1767838248275,-500.0,0.00017999,2]
[400822117,1767838248284,-500.0,0.00017999,2]
[400822119,1767838248293,-500.0,0.00017999,2]
[400822121,1767838248302,-363.73176274,0.00017999,2]
[400822123,1767838248311,-300.0,0.00017999,2]
[400822125,1767838248321,-666.0,0.00017999,2]
[400822127,1767838248331,-500.0,0.00017999,2]
[400822129,1767838248339,-500.0,0.00017999,2]
[400822131,1767838248348,-500.0,0.00017999,2]
[400822133,1767838248357,-500.0,0.00017999,2]
[400822135,1767838248366,-500.0,0.00017999,2]
[400822137,1767838248375,-500.0,0.00017999,2]
[400822139,1767838248383,-500.0,0.00017999,2]
[400822141,1767838248392,-500.0,0.00017999,2]
[400822143,1767838248401,-500.0,0.00017999,2]
[400822145,1767838248411,-500.0,0.00017999,2]
[400822147,1767838248420,-338.00886573,0.00017999,2]
[400822150,1767838248433,-712.28845461,0.00017999,2]
[400822152,1767838248442,-300.0,0.00017999,2]
[400822154,1767838248451,-300.0,0.00017999,2]
[400822156,1767838248461,-1106.18518596,0.00017999,2]
[400822158,1767838248470,-300.0,0.00017999,2]
[400822160,1767838248479,-666.0,0.00017999,2]
[400822162,1767838248489,-547.75434789,0.00017999,2]
[400822164,1767838248498,-300.0,0.00017999,2]
[400822166,1767838248507,-666.0,0.00017999,2]
[400822167,1767838248517,-300.0,0.00017999,2]
[400822169,1767838248530,-666.0,0.00017999,2]
[400822172,1767838248540,-300.0,0.00017999,2]
[400822174,1767838248549,-5970.77362135,0.00017999,2]
[400822175,1767838248559,-154.67877044,0.00018,2]
[400822177,1767838248569,-5593167.20575246,0.00018,2]
[400822182,1767838248601,-500.0,0.0001501,2]
[400822184,1767838248610,-172984.75463432,0.00018,2]
[400822226,1767838249002,-277.1398051,0.00014859,2]
[400822230,1767838249030,-3.76314538,0.00014859,2]
[400822232,1767838249040,-500.0,0.00014955,2]
[400822234,1767838249049,-150.0,0.00014955,2]
[400822236,1767838249059,-150.0,0.00014955,2]
[400822238,1767838249068,-151.0,0.00014955,2]
[400822240,1767838249077,-150.0,0.0001501,2]
[400822243,1767838249087,-500.0,0.0001501,2]
[400822244,1767838249096,-270.67363849,0.0001501,2]
[400822247,1767838249106,-500.0,0.00015065,2]
[400822249,1767838249115,-205.97900518,0.00015065,2]
[400822251,1767838249125,-500.0,0.00015065,2]
[400822252,1767838249134,-500.0,0.00015119,2]
[400822254,1767838249144,-500.0,0.00015119,2]
[400822256,1767838249153,-500.0,0.00015174,2]
[400822258,1767838249163,-500.0,0.00015174,2]
[400822261,1767838249172,-500.6013892,0.00015229,2]
[400822262,1767838249181,-596.10664036,0.00015229,2]
[400822265,1767838249191,-2174667.74145832,0.00018,2]
[400822307,1767838249590,-1.7e-07,0.00018,2]
[400822310,1767838249607,-9012.39199452,0.00018,2]
[400822318,1767838249675,280.90295053,0.00013642,2]
[400822363,1767838250089,-0.99671865,0.00013711,2]
[400822365,1767838250101,-199.00328135,0.00013711,2]
[400822367,1767838250111,-1226.77752299,0.000159,2]
[400822370,1767838250122,-368.6501848,0.000159,2]
[400822372,1767838250131,-773.30968432,0.00017574,2]
[400822375,1767838250151,-1220.52685329,0.00017574,2]
[400822382,1767838250252,-1359.39070652,0.00017574,2]
[400822385,1767838250264,-3198.77275587,0.00017574,2]
[400822387,1767838250273,-480.17429951,0.0001775,3]
[400822400,1767838250387,-280.90295048,0.0001425,2]
[400822402,1767838250398,-1595.42770779,0.000159,2]
[400822404,1767838250407,-250.0,0.00017,2]
[400822406,1767838250420,-2478.61934173,0.0001775,3]
[400822408,1767838250432,-3300.0,0.0001775,3]
[400825159,1767838291924,4783.0882,0.00013642,2]
[400825160,1767838309979,4655.11589894,0.00013642,2]
[400825161,1767838310004,10000.01,0.00013642,2]
[400825162,1767838310030,10000.01,0.00013642,2]
[400825163,1767838310057,10000.01,0.00013642,2]
[400825164,1767838310083,10000.01,0.00013642,2]
[400825165,1767838310108,10000.01,0.00013642,2]
[400825166,1767838310134,10000.01,0.00013642,2]
[400825167,1767838310161,10000.01,0.00013642,2]
[400825168,1767838310190,10000.01,0.00013642,2]
[400825169,1767838310231,10000.01,0.00013642,2]
[400825170,1767838310780,-699.05283522,0.00013642,2]
[400825171,1767838314038,-305.44719933,0.00013642,2]
[400825172,1767838315725,-382.35510907,0.00013642,2]
[400825174,1767838319054,-274.16345229,0.00013642,2]
[400825175,1767838321050,-5307.09531171,0.00013642,2]
[400825176,1767838321147,-195.88696591,0.00013642,2]
[400825177,1767838321270,-10000.01,0.00013642,2]
[400825178,1767838321562,-300.0,0.00013641,2]
[400825179,1767838321602,-9400.01,0.00013642,2]
[400825181,1767838323212,-150.0,0.00013641,2]
[400825182,1767838323244,-36.68173507,0.00013642,2]
[400825183,1767838325429,-10000.01,0.00013642,2]
[400825184,1767838325519,-10000.01,0.00013642,2]
[400825185,1767838325792,-10000.01,0.00013642,2]
[400825186,1767838326037,-10000.01,0.00013642,2]
[400825187,1767838326333,-10000.01,0.00013642,2]
[400825188,1767838326570,-10000.01,0.00013642,2]
[400825189,1767838329827,-318.16224451,0.00013642,2]
[400825190,1767838331923,-163.1260951,0.00013642,2]
[400825191,1767838333473,-500.0,0.00013642,2]
[400825194,1767838334983,-200.0,0.00013642,2]
[400825199,1767838336836,-10000.01,0.00013642,2]
[400825200,1767838336959,-345.15939816,0.00013642,2]
[400825201,1767838339940,-305.52403129,0.00013642,2]
[400825202,1767838341668,-10000.01,0.00013642,2]
[400825203,1767838343559,-282.7774489,0.00013642,2]
[400825204,1767838344910,-10000.01,0.00013642,2]
[400825205,1767838345550,-10000.01,0.00013642,2]
[400825206,1767838345563,-10000.01,0.00013642,2]
[400825207,1767838345576,-10000.01,0.00013642,2]
[400825208,1767838345598,-10000.01,0.00013642,2]
[400825209,1767838345654,-205.27058711,0.00013642,2]
[400825210,1767838345669,-10000.01,0.00013642,2]
[400825211,1767838345694,-10000.01,0.00013642,2]
[400825220,1767838348090,-10000.01,0.00013642,2]
[400825221,1767838348173,-210.73445015,0.00013642,2]
[400825222,1767838349630,-152.90274074,0.00013573,2]
[400825223,1767838350878,-27.27859726,0.00013573,2]
[400825224,1767838350923,-9945.45280548,0.00013642,2]
[400825225,1767838351001,-10000.01,0.00013642,2]
[400825226,1767838351125,-10000.01,0.00013642,2]
[400825227,1767838351233,-10000.01,0.00013642,2]
[400825228,1767838351319,-163.01688665,0.00013642,2]
[400825229,1767838351347,-10000.01,0.00013642,2]
[400825230,1767838351447,-10000.01,0.00013642,2]
[400825231,1767838353531,-452.27880143,0.00013642,2]
[400825232,1767838354476,-10000.01,0.00013642,2]
[400825235,1767838355530,-499.0217169,0.00013642,2]
[400825238,1767838358029,-356.66185142,0.00013642,2]
[400825260,1767838360310,-273.72720908,0.00013642,2]
[400825261,1767838362247,-310.10312473,0.00013642,2]
[400825262,1767838364732,-300.93263813,0.00013642,2]
[400825263,1767838366124,-161.1,0.00013642,2]
[400825264,1767838367694,-500.0,0.00013642,2]
[400825265,1767838369695,-538.22372313,0.00013642,2]
[400825266,1767838372210,-10000.01,0.00013642,2]
[400825267,1767838372411,-10000.01,0.00013642,2]
[400825268,1767838372687,-10000.01,0.00013642,2]
[400825269,1767838372949,-500.0,0.00013642,2]
[400825270,1767838372965,-10000.01,0.00013642,2]
[400825271,1767838373156,-10000.01,0.00013642,2]
[400825272,1767838373340,-10000.01,0.00013642,2]
[400825273,1767838373587,-10000.01,0.00013642,2]
[400825274,1767838373773,-10000.01,0.00013642,2]
[400825275,1767838374015,-10000.01,0.00013642,2]
[400825276,1767838374410,-190.29659076,0.00013642,2]
[400825277,1767838374853,-10000.01,0.00013642,2]
[400825278,1767838376437,-188.86471918,0.00013642,2]
[400825279,1767838380124,-238.92681915,0.00013642,2]
[400825280,1767838381203,-442.21273673,0.00013642,2]
[400825281,1767838382742,-166.66,0.00013641,2]
[400825282,1767838384211,-133.34,0.00013641,2]
[400825283,1767838384246,-9733.33,0.00013642,2]
[400825284,1767838384420,-10000.01,0.00013642,2]
[400825285,1767838384531,-10000.01,0.00013642,2]
[400825287,1767838384658,-10000.01,0.00013642,2]
[400825288,1767838384787,-217.87501363,0.00013642,2]
[400825289,1767838384822,-10000.01,0.00013642,2]
[400825290,1767838384936,-10000.01,0.00013642,2]
[400825291,1767838387139,-10000.01,0.00013642,2]
[400825292,1767838387860,-205.90101924,0.00013642,2]
[400825293,1767838391408,-4709.52575804,0.00013542,2]
[400825294,1767838391440,-580.95848392,0.00013542,2]
[400825295,1767838391476,-188.63541321,0.00013642,2]
[400825296,1767838391652,-580.95848392,0.00013642,2]
[400825297,1767838391665,-8838.09303216,0.00013642,2]
[400825298,1767838391685,-10000.01,0.00013642,2]
[400825299,1767838391699,-10000.01,0.00013642,2]
[400825300,1767838391713,-10000.01,0.00013642,2]
[400825301,1767838391755,-10000.01,0.00013642,2]
[400825302,1767838392599,-565.41502559,0.00013642,2]
[400825303,1767838397394,334.59219644,0.00013542,2]
[400825348,1767838458336,367.7,0.0003287,120]
[400825378,1767838487928,10000.01,0.00013542,2]
[400825379,1767838487953,3556.68694219,0.00013542,2]
[400825380,1767838495237,600.0,0.0003287,120]
[400825384,1767838506131,952.35394664,0.00013542,2]
[400825388,1767838521564,2500.0,0.00013542,2]
[400825426,1767838565575,428.37759214,0.00013542,2]
[400825462,1767838601081,2562.59151903,0.00013542,2]
[400825463,1767838601103,10000.01,0.00013542,2]
[400825464,1767838601124,10000.01,0.00013542,2]
[400825465,1767838601146,10000.01,0.00013542,2]
[400825466,1767838601168,1017.76078097,0.00013542,2]
[400825470,1767838613024,224.899166,0.00013558,2]
[400825478,1767838650334,2500.0,0.00013542,2]
[400825495,1767838776654,6257.35005303,0.00013542,2]
[400825496,1767838776679,10000.01,0.00013542,2]
[400825497,1767838776706,2194.83055732,0.00013542,2]
[400825501,1767838793896,10000.01,0.00013542,2]
[400825502,1767838793929,10000.01,0.00013542,2]
[400825503,1767838793963,10000.01,0.00013542,2]
[400825504,1767838793996,10000.01,0.00013542,2]
[400825505,1767838794035,10000.01,0.00013542,2]
[400825506,1767838794068,4350.8705,0.00013542,2]
[400825507,1767838800706,2500.0,0.00013542,2]
[400825512,1767838818242,374.83039314,0.00013542,2]
[400825514,1767838845419,359.27,7.009e-05,2]
[400825515,1767838845618,359.27,7.364e-05,2]
[400825516,1767838845854,359.27,7.718e-05,2]
[400825517,1767838846059,359.27,8.073e-05,2]
[400825518,1767838846258,359.27,8.427e-05,2]
[400825519,1767838846462,359.27,8.782e-05,2]
[400825520,1767838846690,359.27,9.136e-05,2]
[400825521,1767838846916,359.27,9.491e-05,2]
[400825522,1767838847364,359.27,9.845e-05,2]
[400825523,1767838847578,359.27,0.000102,2]
[400825524,1767838847771,359.27,0.00010554,2]
[400825525,1767838847997,359.27,0.00010909,2]
[400825526,1767838848207,359.27,0.00011263,2]
[400825527,1767838848465,359.27,0.00011618,2]
[400825528,1767838848672,359.27,0.00011972,2]
[400825529,1767838848892,359.27,0.00012326,2]
[400825530,1767838849092,359.27,0.00012681,2]
[400825531,1767838849300,359.27,0.00013035,2]
[400825532,1767838849495,359.27,0.0001339,2]
[400825535,1767838882094,1852.42,0.00013511,2]
[400825538,1767838912776,946.62960686,0.00013511,2]
[400825539,1767838912799,5829.78039314,0.00013511,2]
[400825542,1767838935589,327.97659398,0.00013542,2]
[400825543,1767838937190,813.0908,0.00013542,2]
[400825544,1767838943663,3029.16221288,0.00013542,2]
[400825545,1767838943687,719.41898712,0.00013542,2]
[400825546,1767838949406,2500.0,0.00013542,2]
[400825550,1767838965463,1000.0,0.00013221,2]
[400825551,1767838965513,1000.0,0.00013294,2]
[400825552,1767838965596,1000.0,0.00013042,2]
[400825553,1767838965673,1000.0,0.00013459,2]
[400825554,1767838965712,1000.0,0.0001253,2]
[400825555,1767838967481,611.8,0.00032877,120]
[400825558,1767838999046,10000.01,0.00013542,2]
[400825559,1767838999069,7341.0507445,0.00013542,2]
[400825560,1767839010197,516.26,0.00032877,120]
[400825562,1767839046254,-1059.94309744,0.000136,2]
[400825563,1767839046283,-1000.0,0.00013621,2]
[400825564,1767839046313,-262.0,0.00013626,2]
[400825565,1767839046342,-433.59690648,0.00013626,2]
[400825566,1767839046373,-355.9895,0.00013626,2]
[400825567,1767839046403,-250.0,0.00013627,2]
[400825568,1767839046433,-292.0,0.00013632,2]
[400825569,1767839046461,-300.0,0.00013632,2]
[400825570,1767839046492,-300.0,0.00013632,2]
[400825571,1767839046970,-292.95099216,0.00013633,2]
[400825572,1767839054710,-907.04900784,0.00013633,2]
[400825573,1767839054749,-300.0,0.00013633,2]
[400825574,1767839054783,-150.0,0.00013633,2]
[400825575,1767839054814,-300.0,0.00013633,2]
[400825576,1767839055189,-200.0,0.00013634,2]
[400825577,1767839055220,-151.0,0.00013634,2]
[400825578,1767839055255,-500.0,0.00013634,2]
[400825579,1767839055285,-151.0,0.00013634,2]
[400825580,1767839055316,-151.0,0.00013634,2]
[400825581,1767839055345,-151.0,0.00013634,2]
[400825582,1767839055376,-151.0,0.00013634,2]
[400825583,1767839055405,-151.0,0.00013634,2]
[400825584,1767839055435,-151.0,0.00013634,2]
[400825585,1767839055464,-151.0,0.00013634,2]
[400825586,1767839055498,-151.0,0.00013634,2]
[400825587,1767839055532,-151.0,0.00013634,2]
[400825588,1767839055562,-151.0,0.00013634,2]
[400825589,1767839055592,-151.0,0.00013634,2]
[400825590,1767839055623,-151.0,0.00013634,2]
[400825591,1767839055654,-151.0,0.00013634,2]
[400825592,1767839055683,-151.0,0.00013634,2]
[400825593,1767839055712,-151.0,0.00013634,2]
[400825594,1767839055740,-151.0,0.00013634,2]
[400825595,1767839055771,-0.91198432,0.00013634,2]
[400825596,1767839082717,286.97951975,0.00013542,2]
[400825597,1767839086888,4109.4312,0.00013542,2]
[400825611,1767839152545,854.19,0.00013363,2]
[400825613,1767839163940,4749.40928025,0.00013542,2]
[400825614,1767839163977,10000.01,0.00013542,2]
[400825615,1767839164020,3367.37058003,0.00013542,2]
[400825617,1767839178367,163.02,0.00010654,2]
[400825619,1767839178587,163.02,0.0001243,2]
[400825620,1767839200836,163.98829702,0.00013542,2]
[400825623,1767839232139,816.12163602,0.0001305,2]
[400825633,1767839342163,500.0,0.00013203,2]
[400825635,1767839343411,4826.48948693,0.00013538,2]
[400825647,1767839347458,-181.83775549,0.00013538,2]
[400825648,1767839350844,-303.73131223,0.00013538,2]
[400825649,1767839352551,-322.16513308,0.00013538,2]
[400825650,1767839355583,-541.52721557,0.00013538,2]
[400825651,1767839357141,-166.869786,0.00013538,2]
[400825652,1767839358658,-325.11128919,0.00013538,2]
[400825653,1767839362083,-406.03393071,0.00013538,2]
[400825655,1767839365390,-300.0,0.00013538,2]
[400825658,1767839370301,-263.2098759,0.00013538,2]
[400825660,1767839371108,6843.11,0.00013146,2]
[400825664,1767839372352,-303.91570653,0.00013538,2]
[400825671,1767839375861,-168.91999983,0.00013538,2]
[400825672,1767839379035,-195.0,0.00013538,2]
[400825673,1767839380012,177.65368225,0.00032877,120]
[400825674,1767839381267,-199.48883797,0.00013538,2]
[400825675,1767839383308,-300.0,0.00013538,2]
[400825676,1767839384859,-407.47958521,0.00013538,2]
[400825677,1767839388420,-201.3236509,0.00013538,2]
[400825678,1767839390474,-252.63603701,0.00013538,2]
[400825679,1767839393634,-156.95469059,0.00013538,2]
[400825680,1767839395316,339.96644,0.0001347,2]
[400825681,1767839397191,-281.27730079,0.00013538,2]
[400825686,1767839404339,-257.47850945,0.00013537,2]
[400825687,1767839405884,-42.52149055,0.00013537,2]
[400825688,1767839405911,-300.0,0.00013537,2]
[400825689,1767839405936,-157.47850945,0.00013537,2]
[400825693,1767839408449,-230.60854268,0.00013533,2]
[400825694,1767839408470,-269.39145732,0.00013537,2]
[400825695,1767839410258,-162.41020136,0.00013537,2]
[400825696,1767839412403,-223.17976151,0.00013537,2]
[400825697,1767839413891,-200.0,0.00013537,2]
[400825698,1767839415549,-187.54007036,0.00013537,2]
[400825699,1767839415572,-150.0,0.00013537,2]
[400825700,1767839415595,-174.55203038,0.00013537,2]
[400825702,1767839419232,-81.44796962,0.00013537,2]
[400825703,1767839419266,-250.0,0.00013537,2]
[400825704,1767839419296,-168.55203038,0.00013538,2]
[400825705,1767839421903,-250.0,0.00013538,2]
[400825706,1767839423327,-181.83775549,0.00013538,2]
[400825707,1767839426484,-210.22252446,0.00013538,2]
[400825708,1767839427953,-252.70396908,0.00013538,2]
[400825709,1767839430364,-161.41992823,0.00013538,2]
[400825716,1767839431817,-3571.53153388,0.00013538,2]
[400825718,1767839431832,-9059.67080775,0.00013538,2]
[400825721,1767839431930,-740.75413612,0.00013538,2]
[400825722,1767839431986,-136816.57087664,0.00013538,2]
[400825723,1767839431998,-5392.98466833,0.00013538,2]
[400825724,1767839432009,-11489.45210021,0.00013538,2]
[400825725,1767839432020,-1351.14592439,0.00013538,2]
[400825726,1767839432032,-1123.74605043,0.00013538,2]
[400825732,1767839437873,-540.01220046,0.00013538,2]
[400825733,1767839437885,-9015.85975646,0.00013538,2]
[400825734,1767839437896,-2764.13390506,0.00013538,2]
[400825735,1767839437908,-6888.636184,0.00013538,2]
[400825736,1767839437927,-822.627884,0.00013538,2]
[400825737,1767839437984,-8316.66750054,0.00013538,2]
[400825738,1767839437995,-65118.23177958,0.00013538,2]
[400825739,1767839438041,-725659.26689058,0.00013538,2]
[400825740,1767839438055,-261.0,0.00013538,2]
[400825741,1767839438065,-500.0,0.00013634,2]
[400825742,1767839438075,-151.0,0.00013634,2]
[400825743,1767839438086,-202.84026902,0.00013634,2]
[400825744,1767839438096,-151.0,0.00013634,2]
[400825745,1767839438106,-151.0,0.00013634,2]
[400825746,1767839438116,-151.0,0.00013634,2]
[400825747,1767839438128,-151.0,0.00013634,2]
[400825748,1767839438138,-151.0,0.00013634,2]
[400825749,1767839438149,-151.0,0.00013634,2]
[400825750,1767839438160,-151.0,0.00013634,2]
[400825751,1767839438170,-151.0,0.00013634,2]
[400825752,1767839438181,-151.0,0.00013634,2]
[400825753,1767839438192,-151.0,0.00013634,2]
[400825754,1767839438202,-151.0,0.00013634,2]
[400825755,1767839438212,-151.0,0.00013634,2]
[400825756,1767839438222,-151.0,0.00013634,2]
[400825757,1767839438231,-151.0,0.00013634,2]
[400825758,1767839438244,-151.0,0.00013634,2]
[400825759,1767839438257,-200.0,0.00013634,2]
[400825761,1767839438267,-151.0,0.00013634,2]
[400825763,1767839438277,-151.0,0.00013634,2]
[400825765,1767839438287,-151.0,0.00013634,2]
[400825766,1767839438297,-151.0,0.00013634,2]
[400825767,1767839438307,-151.0,0.00013634,2]
[400825768,1767839438316,-151.0,0.00013634,2]
[400825770,1767839438326,-151.0,0.00013634,2]
[400825771,1767839438336,-151.0,0.00013634,2]
[400825773,1767839438345,-151.0,0.00013634,2]
[400825775,1767839438355,-151.0,0.00013634,2]
[400825777,1767839438366,-151.0,0.00013634,2]
[400825779,1767839438376,-200.0,0.00013634,2]
[400825781,1767839438387,-151.0,0.00013634,2]
[400825784,1767839438397,-151.0,0.00013634,2]
[400825786,1767839438407,-151.0,0.00013634,2]
[400825788,1767839438418,-151.0,0.00013634,2]
[400825790,1767839438427,-1379.37,0.00013634,2]
[400825791,1767839438438,-203.65562894,0.00013636,2]
[400825794,1767839438451,-533.43140379,0.00013636,2]
[400825796,1767839438461,-193.989013,0.00013636,2]
[400825798,1767839438471,-500.0,0.00013636,2]
[400825800,1767839438480,-500.0,0.00013636,2]
[400825802,1767839438491,-500.0,0.00013636,2]
[400825804,1767839438501,-500.0,0.00013636,2]
[400825806,1767839438513,-500.0,0.00013636,2]
[400825808,1767839438523,-500.0,0.00013636,2]
[400825810,1767839438532,-500.0,0.00013636,2]
[400825812,1767839438541,-500.0,0.00013636,2]
[400825814,1767839438551,-500.0,0.00013636,2]
[400825816,1767839438561,-500.0,0.00013636,2]
[400825817,1767839438571,-500.0,0.00013636,2]
[400825819,1767839438581,-500.0,0.00013636,2]
[400825822,1767839438592,-500.0,0.00013636,2]
[400825824,1767839438602,-500.0,0.00013636,2]
[400825826,1767839438612,-500.0,0.00013636,2]
[400825828,1767839438622,-500.0,0.00013636,2]
[400825830,1767839438632,-500.0,0.00013636,2]
[400825832,1767839438641,-500.0,0.00013636,2]
[400825834,1767839438653,-500.0,0.00013636,2]
[400825836,1767839438663,-500.0,0.00013636,2]
[400825838,1767839438673,-500.0,0.00013636,2]
[400825840,1767839438683,-500.0,0.00013636,2]
[400825842,1767839438692,-500.0,0.00013636,2]
[400825844,1767839438702,-500.0,0.00013636,2]
[400825846,1767839438711,-500.0,0.00013636,2]
[400825848,1767839438721,-500.0,0.00013636,2]
[400825850,1767839438731,-500.0,0.00013636,2]
[400825852,1767839438741,-500.0,0.00013636,2]
[400825854,1767839438751,-500.0,0.00013636,2]
[400825856,1767839438761,-500.0,0.00013636,2]
[400825858,1767839438770,-500.0,0.00013636,2]
[400825859,1767839438780,-500.0,0.00013636,2]
[400825862,1767839438791,-500.0,0.00013636,2]
[400825864,1767839438800,-500.0,0.00013636,2]
[400825866,1767839438810,-500.0,0.00013636,2]
[400825868,1767839438820,-500.0,0.00013636,2]
[400825870,1767839438836,-500.0,0.00013636,2]
[400825872,1767839438845,-500.0,0.00013636,2]
[400825873,1767839438855,-500.0,0.00013636,2]
[400825875,1767839438867,-500.0,0.00013636,2]
[400825877,1767839438878,-500.0,0.00013636,2]
[400825879,1767839438887,-500.0,0.00013636,2]
[400825881,1767839438898,-500.0,0.00013636,2]
[400825883,1767839438909,-500.0,0.00013636,2]
[400825885,1767839438919,-500.0,0.00013636,2]
[400825887,1767839438929,-500.0,0.00013636,2]
[400825889,1767839438939,-500.0,0.00013636,2]
[400825891,1767839438949,-500.0,0.00013636,2]
[400825893,1767839438959,-500.0,0.00013636,2]
[400825895,1767839438969,-500.0,0.00013636,2]
[400825897,1767839438979,-500.0,0.00013636,2]
[400825899,1767839438989,-500.0,0.00013636,2]
[400825901,1767839438999,-373.3729692,0.00013636,2]
[400825903,1767839439010,-500.0,0.00013636,2]
[400825904,1767839439020,-500.0,0.00013636,2]
[400825905,1767839439029,-500.0,0.00013636,2]
[400825906,1767839439048,-500.0,0.00013636,2]
[400825907,1767839439059,-500.0,0.00013636,2]
[400825908,1767839439070,-500.0,0.00013636,2]
[400825909,1767839439080,-500.0,0.00013636,2]
[400825910,1767839439090,-500.0,0.00013636,2]
[400825911,1767839439100,-500.0,0.00013636,2]
[400825912,1767839439110,-500.0,0.00013636,2]
[400825913,1767839439120,-500.0,0.00013636,2]
[400825914,1767839439130,-500.0,0.00013636,2]
[400825915,1767839439139,-500.0,0.00013636,2]
[400825916,1767839439149,-500.0,0.00013636,2]
[400825917,1767839439158,-500.0,0.00013636,2]
[400825918,1767839439169,-500.0,0.00013636,2]
[400825919,1767839439178,-500.0,0.00013636,2]
[400825920,1767839439187,-500.0,0.00013636,2]
[400825921,1767839439198,-500.0,0.00013636,2]
[400825922,1767839439208,-155.0,0.00013636,2]
[400825923,1767839439217,-500.0,0.00013636,2]
[400825924,1767839439227,-500.0,0.00013636,2]
[400825925,1767839439236,-500.0,0.00013636,2]
[400825926,1767839439247,-500.0,0.00013636,2]
[400825927,1767839439256,-500.0,0.00013636,2]
[400825928,1767839439265,-500.0,0.00013636,2]
[400825929,1767839439275,-500.0,0.00013636,2]
[400825930,1767839439284,-500.0,0.00013636,2]
[400825931,1767839439294,-500.0,0.00013636,2]
[400825933,1767839439303,-156.95469059,0.00013636,2]
[400825935,1767839439313,-150.99,0.00013639,2]
[400825937,1767839439324,-39509.98,0.00013639,2]
[400825939,1767839439334,-9999.99,0.00013639,2]
[400825941,1767839439343,-7905.49,0.00013639,2]
[400825943,1767839439352,-5884.67,0.00013639,2]
[400825945,1767839439362,-999.99,0.00013639,2]
[400825947,1767839439372,-499.99,0.00013639,2]
[400825950,1767839439382,-299.99,0.00013639,2]
[400825951,1767839439391,-632.02498972,0.00013641,2]
[400825954,1767839439401,-500.0,0.00013641,2]
[400825956,1767839439411,-484.41247744,0.00013641,2]
[400825958,1767839439421,-627.59176811,0.00013641,2]
[400825960,1767839439430,-500.0,0.00013641,2]
[400825962,1767839439439,-265.04915156,0.00013641,2]
[400825964,1767839439448,-500.0,0.00013641,2]
[400825966,1767839439458,-500.0,0.00013641,2]
[400825968,1767839439467,-500.0,0.00013641,2]
[400825970,1767839439476,-500.0,0.00013641,2]
[400825972,1767839439485,-500.0,0.00013641,2]
[400825974,1767839439495,-500.0,0.00013641,2]
[400825976,1767839439504,-150.0,0.00013641,2]
[400825978,1767839439514,-150.0,0.00013641,2]
[400825980,1767839439524,-2585.3429,0.00013642,2]
[400825982,1767839439533,-210.91209289,0.00013642,2]
[400825984,1767839439543,-1000.0,0.00013664,2]
[400825986,1767839439553,-500.0,0.00013698,2]
[400825988,1767839439562,-500.0,0.00013698,2]
[400825990,1767839439574,-500.0,0.00013698,2]
[400825992,1767839439584,-500.0,0.00013698,2]
[400825994,1767839439600,-500.0,0.00013698,2]
[400825996,1767839439611,-500.0,0.00013698,2]
[400825998,1767839439621,-512.38385976,0.00013698,2]